bitfinex-derivatives/quotes_ETHF0:USTF0_20250803
["timestamp","ask_amount","ask_price","bid_price","bid_amount"]
[1754253061474,2.24598449,3485.9,3485.8,1.7051]
[1754253061874,6.99500831,3485.9,3485.5,0.5738]
[1754253062072,0.3654,3484.8,3484.7,1.10794]
[1754253062284,0.3654,3484.8,3484.7,1.79464]
[1754253062484,0.8674,3484.8,3484.7,1.79464]
[1754253062878,0.8674,3484.8,3484.7,2.27904]
[1754253063576,1.5344,3484.8,3484.7,2.27904]
[1754253063778,0.8674,3484.8,3484.7,2.27904]
[1754253063973,0.8674,3484.8,3484.7,1.10794]
[1754253064184,1.9866,3484.8,3484.7,2.27904]
[1754253064389,2.93227268,3484.8,3484.7,2.27904]
[1754253064583,2.93227268,3484.8,3484.7,0.534]
[1754253064779,6.39817268,3484.8,3484.7,0.534]
[1754253064980,26.78579025,3484.8,3484.7,0.534]
[1754253065178,26.78579025,3484.8,3484.2,0.57401]
[1754253065179,2.2447,3484.3,3484.2,0.57401]
[1754253065374,1.0324,3484.1,3484.0,1.10805]
[1754253065590,1.9866,3484.1,3484.0,3.14695]
[1754253065780,0.8674,3484.1,3484.0,3.14695]
[1754253066885,23.3358,3484.8,3484.6,0.57394]
[1754253067087,1.20588785,3484.7,3484.6,1.60284]
[1754253067387,1.20593234,3484.7,3484.6,1.60284]
[1754253067689,0.94620903,3484.7,3484.6,3.14684]
[1754253074092,1.84160903,3484.7,3484.6,3.14684]
[1754253074489,2.32980903,3484.7,3484.6,3.14684]
[1754253075192,6.49434637,3484.7,3484.6,0.534]
[1754253075495,1.6307,3484.6,3484.5,0.5515]
[1754253075794,3.26800903,3484.6,3484.5,0.5515]
[1754253077296,2.3218,3484.6,3484.5,0.5515]
[1754253077497,3.26575567,3484.6,3484.5,0.9111]
[1754253077793,2.3218,3484.0,3483.9,1.03330989]
[1754253078101,5.54813734,3484.0,3483.9,1.03330989]
[1754253079794,6.49107806,3484.0,3483.9,1.58480989]
[1754253079990,6.49107806,3484.0,3483.9,1.94440989]
[1754253080298,5.54813734,3484.0,3483.9,1.94440989]
[1754253081092,5.54813734,3484.0,3483.9,1.58480989]
[1754253081595,5.54813734,3484.0,3483.9,1.03330989]
[1754253082894,5.54813734,3484.0,3483.9,1.58480989]
[1754253083093,5.54813734,3484.0,3483.9,1.94440989]
[1754253083296,5.26443734,3484.0,3483.9,2.25130989]
[1754253083495,22.1491,3484.0,3483.9,3.59260989]
[1754253084896,21.0064,3484.0,3483.9,3.59260989]
[1754253085201,20.4537,3484.0,3483.9,3.59260989]
[1754253085403,21.0024,3484.0,3483.9,3.59260989]
[1754253085597,0.8954,3484.0,3483.9,3.59260989]
[1754253085795,3.2078,3484.1,3484.0,3.13335]
[1754253087497,20.098,3484.2,3484.1,2.5593]
[1754253087704,3.2078,3484.9,3484.6,2.5593]
[1754253088002,3.2078,3484.9,3484.8,2.5593]
[1754253088196,26.2757105,3484.9,3484.8,2.5593]
[1754253089991,24.5820105,3484.9,3484.8,0.9111]
[1754253090195,0.6545,3484.5,3484.4,1.24048]
[1754253090393,20.9744,3484.5,3484.4,3.13328]
[1754253090801,20.079,3484.5,3484.4,3.13328]
[1754253091897,20.6277,3484.5,3484.4,3.13328]
[1754253092401,20.079,3484.5,3484.4,3.13328]
[1754253092897,3.2078,3484.9,3484.8,0.57392]
[1754253093105,2.0381,3485.2,3485.1,2.5593]
[1754253093299,23.05106525,3485.2,3485.1,2.5593]
[1754253094399,0.93896525,3485.2,3485.1,2.5593]
[1754253096308,20.9644,3485.3,3485.2,3.13315]
[1754253096605,21.6189,3485.3,3485.2,2.5593]
[1754253096808,22.1071,3485.3,3485.2,2.5593]
[1754253098809,22.1071,3485.3,3485.2,2.0275]
[1754253100410,22.1071,3485.3,3485.2,2.5593]
[1754253101212,20.9644,3485.3,3485.2,2.5593]
[1754253102406,20.069,3485.3,3485.2,2.5593]
[1754253104006,20.6282,3485.3,3485.2,2.5593]
[1754253104312,20.996,3485.3,3485.2,2.5593]
[1754253104612,0.927,3485.3,3485.2,2.5593]
[1754253105507,4.5873,3485.8,3485.7,3.13537]
[1754253105811,0.927,3485.8,3485.7,3.13537]
[1754253106615,4.1348,3486.2,3486.1,3.13531]
[1754253106815,4.5873,3486.2,3486.1,3.13531]
[1754253108200,3.2078,3486.2,3486.1,3.13531]
[1754253108407,3.767,3486.2,3486.1,3.13531]
[1754253108607,1.6755,3486.5,3486.4,1.61666]
[1754253108808,2.0386,3486.5,3486.4,3.13526]
[1754253109312,0.927,3486.5,3486.4,3.13526]
[1754253111410,0.927,3486.5,3485.9,3.2078]
[1754253111411,0.5592,3486.4,3486.2,0.5367]
[1754253111711,2.3027,3486.2,3486.1,0.5367]
[1754253112312,1.7426,3486.2,3486.1,1.8418]
[1754253112611,0.927,3486.2,3486.1,2.1439]
[1754253112811,0.927,3486.2,3486.1,2.6806]
[1754253113014,0.927,3486.2,3486.1,3.1353]
[1754253114813,2.0386,3486.2,3486.1,2.5616]
[1754253116719,3.6603,3486.4,3486.2,1.61669]
[1754253116914,20.4455,3486.7,3486.4,0.57366]
[1754253117217,1.3795,3486.5,3486.4,3.13526]
[1754253117419,2.0386,3486.5,3486.4,3.13526]
[1754253118314,2.0386,3486.5,3486.4,2.5616]
[1754253118613,2.0386,3486.5,3486.4,2.0344]
[1754253120023,2.0386,3486.5,3486.4,0.5367]
[1754253120321,2.0386,3486.0,3485.9,1.56514]
[1754253120516,2.0386,3486.0,3485.9,2.23604]
[1754253121912,0.5592,3486.5,3486.4,2.0249]
[1754253122121,19.993,3486.7,3486.2,0.57369]
[1754253122122,20.92,3486.7,3486.6,1.043]
[1754253122321,0.927,3486.7,3486.6,2.5616]
[1754253122524,1.3795,3486.7,3486.6,2.5616]
[1754253122822,25.1974,3487.0,3486.9,2.5616]
[1754253124121,5.2464,3487.0,3486.9,2.5616]
[1754253128027,5.2464,3487.0,3486.7,0.57361]
[1754253128028,4.1348,3487.4,3487.3,2.5616]
[1754253128222,5.2464,3487.4,3487.3,3.13511]
[1754253128720,5.2464,3487.4,3487.3,2.5616]
[1754253129632,5.2464,3487.4,3487.2,0.57352]
[1754253129633,3.2078,3487.8,3487.7,3.13504]
[1754253130033,20.9619,3488.1,3488.0,1.61639]
[1754253130230,22.89019604,3488.1,3488.0,3.13499]
[1754253130529,2.95519604,3488.1,3488.0,3.13499]
[1754253130722,2.59209604,3488.1,3488.0,3.13499]
[1754253130927,1.223,3488.1,3488.0,3.13499]
[1754253131233,3.2078,3488.4,3488.2,0.57335]
[1754253131532,4.1348,3488.4,3488.3,2.5616]
[1754253132232,5.05085531,3488.4,3488.3,2.5616]
[1754253132633,5.2464,3488.4,3488.3,2.5616]
[1754253132828,2.0386,3488.4,3488.3,2.5616]
[1754253133236,2.94677576,3488.4,3488.3,2.5616]
[1754253134336,1.9698,3488.2,3488.1,1.6487]
[1754253135036,1.9698,3488.2,3488.1,2.5293]
[1754253135338,2.87799448,3488.2,3488.1,2.5293]
[1754253136033,24.15775455,3488.8,3488.7,0.92238]
[1754253136241,24.30314173,3488.8,3488.7,2.5293]
[1754253136436,26.01583209,3488.8,3488.7,2.5293]
[1754253137339,6.08583209,3488.8,3488.7,2.5293]
[1754253137835,2.87803209,3488.8,3488.7,2.5293]
[1754253138336,0.90823209,3488.8,3488.7,2.5293]
[1754253138642,2.20793209,3488.8,3488.7,2.5293]
[1754253138838,2.87803209,3488.8,3488.7,2.5293]
[1754253139938,2.87803209,3488.8,3488.7,1.1733]
[1754253140735,6.08583209,3488.8,3488.7,1.1733]
[1754253141035,6.08583209,3488.8,3488.7,1.6487]
[1754253141841,6.08583209,3488.8,3488.7,1.9978]
[1754253142234,6.08583209,3488.8,3488.7,2.5293]
[1754253142638,1.9698,3488.8,3488.7,2.5293]
[1754253144331,20.3612,3489.1,3488.8,0.57326]
[1754253144541,0.89824838,3489.0,3488.9,2.5293]
[1754253144744,0.5174,3489.2,3489.1,2.5293]
[1754253145037,3.2078,3489.3,3489.2,0.5732]
[1754253145240,4.10621187,3489.3,3489.2,3.1025]
[1754253145744,6.07601187,3489.3,3489.2,3.1025]
[1754253146038,5.1776,3489.3,3489.2,3.1025]
[1754253147136,5.1776,3489.3,3489.2,2.5293]
[1754253147442,5.1776,3489.3,3489.2,1.9978]
[1754253147640,6.07463313,3489.3,3489.2,0.8554]
[1754253147838,6.07463313,3489.3,3489.2,1.1733]
[1754253148142,6.07463313,3489.3,3489.2,1.6487]
[1754253148838,5.35293313,3489.3,3488.8,0.515]
[1754253149044,1.9698,3488.8,3488.7,2.11218]
[1754253149641,1.9698,3488.8,3488.7,3.10258]
[1754253152035,1.6074,3488.8,3488.7,3.10258]
[1754253152739,1.1582,3488.8,3488.7,3.10258]
[1754253152938,0.8505,3488.8,3488.7,3.10258]
[1754253154538,5.1776,3489.3,3489.2,2.571]
[1754253154744,6.07617785,3489.3,3489.2,1.9978]
[1754253155045,2.86837785,3489.3,3489.2,1.9978]
[1754253155436,6.32107785,3489.3,3489.2,0.8554]
[1754253155642,6.57828048,3489.3,3489.2,0.515]
[1754253155842,6.57827846,3489.3,3489.2,0.515]
[1754253156042,6.32107785,3489.3,3489.2,0.515]
[1754253156241,6.57840686,3489.3,3489.2,0.515]
[1754253156544,6.57840686,3489.3,3489.2,0.8554]
[1754253157145,6.57841605,3489.3,3489.2,0.8554]
[1754253157646,0.7823,3488.5,3488.4,2.5293]
[1754253157940,1.9698,3488.5,3488.4,3.10263]
[1754253158141,3.2078,3488.9,3488.8,0.57326]
[1754253158345,0.90050759,3488.9,3488.8,3.10256]
[1754253158542,1.75100759,3488.9,3488.8,3.10256]
[1754253158944,2.20020759,3488.9,3488.8,3.10256]
[1754253159344,2.00894294,3488.9,3488.8,3.10256]
[1754253160049,2.20020759,3488.9,3488.8,3.10256]
[1754253160248,2.45824704,3488.9,3488.8,3.10256]
[1754253160544,1.15854704,3488.9,3488.8,3.10256]
[1754253160847,0.90050759,3488.9,3488.8,3.10256]
[1754253161346,1.5206,3489.3,3489.2,1.5806]
[1754253161643,0.3331,3488.4,3488.3,4.78854]
[1754253161945,1.4524,3488.7,3488.6,1.58069]
[1754253162149,2.86611565,3488.7,3488.6,2.58759]
[1754253162449,0.8505,3489.0,3488.9,1.58065]
[1754253162745,2.45411687,3489.0,3488.9,3.10255]
[1754253162943,2.76181352,3489.0,3488.9,3.10255]
[1754253163852,3.12421352,3489.0,3488.9,3.10255]
[1754253164150,2.76181352,3489.0,3488.9,3.10255]
[1754253164344,1.15441352,3489.0,3488.9,3.10255]
[1754253164648,0.25809134,3489.0,3488.9,3.10255]
[1754253164847,1.2243,3489.3,3489.2,0.9158]
[1754253165043,3.13723595,3489.3,3489.2,2.2591]
[1754253165749,3.13723595,3489.3,3489.2,2.6087]
[1754253165943,3.13723595,3489.3,3489.2,3.1081]
[1754253166451,1.15473595,3489.3,3489.2,3.1081]
[1754253166950,0.89659769,3489.3,3489.2,3.1081]
[1754253167152,1.77519769,3489.3,3489.2,3.1081]
[1754253169248,2.22869769,3489.3,3489.2,3.1081]
[1754253169451,2.53339769,3489.3,3489.2,3.1081]
[1754253170148,2.87909769,3489.3,3489.2,1.2044]
[1754253170547,3.13729078,3489.3,3489.2,1.2044]
[1754253171855,1.50029078,3489.3,3489.2,2.5349]
[1754253172355,2.03339078,3489.3,3489.2,2.5349]
[1754253172653,1.77519769,3489.3,3489.2,2.5349]
[1754253172845,2.03343626,3489.3,3489.2,2.5349]
[1754253173045,1.77519769,3489.3,3489.2,2.5349]
[1754253174456,0.5331,3489.6,3489.2,2.5349]
[1754253174759,2.3321,3490.0,3489.9,3.10798]
[1754253174963,3.47991683,3490.0,3489.9,3.10798]
[1754253175159,4.13031683,3490.0,3489.9,3.10798]
[1754253175659,4.13031683,3490.0,3489.9,2.60858]
[1754253176050,3.87204241,3490.0,3489.9,2.60858]
[1754253176252,2.9825,3490.0,3489.9,2.60858]
[1754253176947,1.2114,3489.9,3489.6,0.5344]
[1754253177153,1.9825,3489.3,3489.2,1.4502]
[1754253177357,1.9825,3489.3,3489.2,3.1081]
[1754253180562,1.9825,3489.3,3489.2,0.5344]
[1754253180861,2.2073,3489.3,3489.2,0.5344]
[1754253182168,2.2073,3489.3,3489.2,0.877]
[1754253183264,1.9825,3489.3,3489.2,0.877]
[1754253184255,3.2078,3489.4,3489.3,0.57318]
[1754253184564,1.9825,3489.7,3489.6,1.59272]
[1754253184762,2.87152086,3489.7,3489.6,2.09212]
[1754253185064,2.87152086,3489.7,3489.6,2.62652]
[1754253185258,2.87152086,3489.7,3489.6,3.10802]
[1754253186858,1.9825,3489.7,3489.6,3.10802]
[1754253189268,1.6368,3489.7,3489.6,3.10802]
[1754253189462,0.8786,3489.7,3489.6,3.10802]
[1754253190064,3.2078,3489.8,3489.6,3.10802]
[1754253190273,4.0864,3489.8,3489.7,2.1853]
[1754253190569,4.0864,3489.8,3489.7,2.5349]
[1754253190963,4.5399,3489.8,3489.7,2.5349]
[1754253191268,5.1903,3489.8,3489.7,2.5349]
[1754253192569,0.8786,3489.8,3489.7,2.5349]
[1754253193171,1.8786,3490.0,3489.9,2.5349]
[1754253193667,1.3455,3490.0,3489.9,2.5349]
[1754253193968,1.0,3490.0,3489.9,2.5349]
[1754253194867,0.24414,3490.0,3489.9,2.5349]
[1754253195068,23.9272,3490.6,3490.5,1.56458]
[1754253195269,4.0862,3490.6,3490.5,3.04998]
[1754253195469,3.2078,3490.6,3490.5,3.04998]
[1754253195772,1.5355,3490.9,3490.8,3.04993]
[1754253195967,0.8784,3490.9,3490.8,3.04993]
[1754253196167,3.2078,3491.0,3490.8,3.04993]
[1754253196467,4.0862,3491.0,3490.9,2.477]
[1754253197869,5.1944,3491.0,3490.9,2.477]
[1754253198267,5.1944,3491.0,3490.9,1.9836]
[1754253199968,5.1944,3491.0,3490.9,2.477]
[1754253203074,5.646,3491.0,3490.9,1.658]
[1754253204364,0.57292,3490.9,3490.7,0.511]
[1754253204675,2.4382,3490.7,3490.6,0.8523]
[1754253205266,1.0052,3490.7,3490.4,0.57299]
[1754253205580,2.4382,3490.4,3490.3,1.08401]
[1754253205773,2.4382,3490.4,3490.3,0.511]
[1754253206673,2.4382,3490.4,3490.3,0.8523]
[1754253207177,2.4382,3490.4,3490.3,1.177]
[1754253207476,2.4382,3490.4,3490.3,1.658]
[1754253208469,0.3481,3489.9,3489.8,1.0841]
[1754253208669,1.0052,3489.8,3489.6,0.57312]
[1754253208873,2.4382,3489.7,3489.6,0.57312]
[1754253209077,1.9866,3489.7,3489.6,2.23112]
[1754253209278,1.9866,3489.7,3489.6,0.511]
[1754253209279,2.4382,3489.7,3489.6,0.511]
[1754253209575,2.4382,3489.7,3489.6,0.8523]
[1754253210173,2.4382,3489.7,3489.3,1.54757]
[1754253210374,1.0052,3489.4,3489.3,1.72017]
[1754253210577,2.4382,3489.4,3489.3,1.72017]
[1754253210780,2.4382,3489.4,3489.3,1.147]
[1754253211080,2.4382,3489.4,3489.3,1.658]
[1754253211774,1.9866,3489.4,3489.3,1.9836]
[1754253212077,1.9866,3489.4,3489.3,2.477]
[1754253214477,1.9866,3489.4,3489.3,0.511]
[1754253214677,1.9866,3489.0,3488.9,0.666]
[1754253214875,2.4382,3489.0,3488.9,0.666]
[1754253215077,2.4382,3489.0,3488.9,1.177]
[1754253215275,2.4382,3489.0,3488.9,1.658]
[1754253216280,1.9866,3489.0,3488.9,2.477]
[1754253216477,1.2187,3489.0,3488.9,2.477]
[1754253216681,0.8784,3489.0,3488.9,2.477]
[1754253217282,1.9866,3489.0,3488.9,2.477]
[1754253218076,3.2078,3489.4,3489.0,0.57323]
[1754253218280,5.646,3489.4,3489.3,1.9836]
[1754253218482,5.646,3489.4,3489.3,1.658]
[1754253219173,5.1944,3489.4,3489.3,1.177]
[1754253219477,0.8784,3489.6,3489.5,0.9916]
[1754253219673,1.9866,3489.6,3489.5,2.477]
[1754253220579,3.2078,3489.8,3489.7,2.477]
[1754253220779,3.7381,3489.8,3489.7,2.477]
[1754253221082,4.0862,3489.8,3489.7,2.477]
[1754253221482,3.2078,3489.8,3489.7,2.477]
[1754253222183,20.2846,3490.9,3489.3,6.79638594]
[1754253222184,1.9866,3490.2,3490.1,0.9916]
[1754253222384,2.4382,3490.2,3490.1,0.666]
[1754253222580,2.4382,3490.2,3490.1,1.658]
[1754253222781,1.9866,3490.2,3490.1,1.9836]
[1754253223085,1.9866,3490.2,3490.1,2.477]
[1754253223384,2.4382,3490.2,3490.1,0.511]
[1754253224082,2.4382,3490.2,3490.1,1.177]
[1754253224278,3.31145645,3490.2,3490.1,1.657]
[1754253224479,2.85985645,3490.2,3490.1,1.657]
[1754253225384,1.9866,3490.2,3490.1,1.657]
[1754253226284,2.85984862,3490.2,3490.1,1.657]
[1754253226782,3.30674862,3490.2,3490.1,1.657]
[1754253228483,2.85984862,3490.2,3490.1,2.499]
[1754253228678,1.64114862,3490.2,3490.1,2.499]
[1754253228879,3.2078,3490.3,3490.2,3.02233]
[1754253230587,3.5528,3490.8,3490.7,1.55405]
[1754253230782,4.5218,3490.8,3490.7,3.02225]
[1754253230981,5.1947,3490.8,3490.7,3.02225]
[1754253231782,4.0642,3490.8,3490.7,3.02225]
[1754253233891,5.1947,3490.8,3490.7,2.18025]
[1754253234187,5.1947,3490.8,3490.7,3.02225]
[1754253234888,1.9869,3490.8,3490.7,3.02225]
[1754253237884,1.9869,3490.8,3490.7,2.52095]
[1754253239086,5.1947,3490.8,3490.7,2.52095]
[1754253239386,1.9869,3490.6,3490.5,0.57298]
[1754253239695,1.9869,3490.6,3490.5,0.819]
[1754253239696,2.4259,3490.6,3490.5,0.819]
[1754253240991,0.8583,3490.1,3490.0,0.57305]
[1754253241293,1.9869,3490.1,3490.0,2.18035]
[1754253241593,1.5293,3489.8,3489.7,0.57311]
[1754253241791,1.5293,3489.8,3489.7,0.819]
[1754253241792,5.6337,3489.8,3489.7,0.819]
[1754253241999,5.6337,3489.8,3489.7,1.6073]
[1754253243096,5.1947,3489.8,3489.7,2.4415]
[1754253243298,1.64,3489.8,3489.7,2.4415]
[1754253243498,0.8564,3489.8,3489.7,2.4415]
[1754253243899,1.4755,3490.1,3490.0,0.9811]
[1754253244100,1.4755,3490.1,3490.0,2.4415]
[1754253244702,1.9869,3490.1,3490.0,2.4415]
[1754253245301,0.8564,3490.1,3490.0,2.4415]
[1754253245499,1.6609,3490.1,3490.0,2.4415]
[1754253245900,1.6419,3490.2,3490.1,0.4869]
[1754253246099,0.6919,3490.0,3489.9,1.05998]
[1754253246306,2.4259,3490.0,3489.9,1.70038]
[1754253246608,3.7192,3490.3,3490.1,0.57304]
[1754253246802,5.1947,3490.3,3490.2,2.4415]
[1754253250105,1.9869,3490.3,3490.2,2.4415]
[1754253251604,1.2033,3489.5,3489.4,1.05316]
[1754253251799,0.6729,3489.2,3489.1,0.57321]
[1754253252003,1.0179,3489.2,3489.1,0.57321]
[1754253252304,1.4755,3489.2,3489.1,2.18051]
[1754253252612,5.6337,3489.6,3489.5,1.1273]
[1754253253616,5.1947,3489.6,3489.5,1.6073]
[1754253253910,5.1947,3489.6,3489.5,2.4312]
[1754253254801,4.7371,3489.6,3489.5,2.4312]
[1754253255001,3.2078,3489.6,3489.5,2.4312]
[1754253255509,0.7992,3489.8,3489.7,0.9516]
[1754253255709,0.7992,3489.8,3489.7,2.4092]
[1754253256407,2.3346,3489.8,3489.7,1.926]
[1754253256614,2.3346,3489.8,3489.7,1.6031]
[1754253258415,1.9058,3489.8,3489.7,1.6031]
[1754253258614,1.9058,3489.8,3489.7,2.4092]
[1754253259211,1.9058,3489.8,3489.7,0.486]
[1754253259512,2.3346,3489.8,3489.7,0.486]
[1754253260714,2.3346,3489.3,3489.2,1.1171]
[1754253261108,1.9058,3489.3,3489.2,1.1171]
[1754253261309,1.9058,3489.3,3489.2,1.6031]
[1754253261608,1.9058,3489.3,3489.2,2.4092]
[1754253262714,0.3232,3489.4,3489.3,2.65328]
[1754253262913,0.7992,3489.4,3489.3,2.98238]
[1754253263111,1.9058,3489.4,3489.3,2.98238]
[1754253271919,1.9058,3489.4,3488.9,3.21950677]
[1754253271920,0.9785,3489.4,3489.0,0.486]
[1754253272123,2.3346,3489.0,3488.9,1.87674]
[1754253272421,2.3346,3489.0,3488.9,2.17634]
[1754253274318,0.476,3488.9,3488.4,3.2078]
[1754253274524,4.6623,3488.7,3488.6,0.3291]
[1754253274724,5.0797,3488.7,3488.6,1.3035]
[1754253275019,5.531,3488.7,3488.6,1.6031]
[1754253275325,5.1136,3488.7,3488.6,1.926]
[1754253275525,5.1136,3488.7,3488.6,2.3979]
[1754253275922,5.1136,3488.7,3488.6,1.926]
[1754253277130,5.1136,3488.7,3488.6,2.3979]
[1754253277421,4.007,3488.7,3488.6,2.3979]
[1754253278226,4.4583,3488.7,3488.6,2.3979]
[1754253280226,4.8038,3488.7,3488.6,2.3979]
[1754253280929,5.1136,3488.7,3488.6,2.3979]
[1754253281425,5.1136,3488.7,3488.6,1.926]
[1754253281626,5.531,3488.7,3488.6,1.6031]
[1754253281828,5.531,3488.7,3488.6,1.1147]
[1754253282621,5.531,3488.7,3488.6,1.6031]
[1754253282823,5.1136,3488.7,3488.6,2.3979]
[1754253284630,3.2078,3488.7,3488.6,2.3979]
[1754253284827,0.7997,3489.3,3489.2,0.89809]
[1754253285029,6.71501255,3489.3,3489.2,2.91329]
[1754253285220,6.71502186,3489.3,3489.2,2.91329]
[1754253285926,5.76202186,3489.3,3489.2,2.3401]
[1754253286120,6.71502186,3489.3,3489.2,2.3401]
[1754253286322,0.9852,3489.2,3489.0,0.57322]
[1754253286524,0.9428,3489.1,3489.0,1.36472]
[1754253286729,2.387,3489.1,3489.0,2.12182]
[1754253287026,0.4912,3488.6,3488.4,1.03993]
[1754253287227,1.928,3488.6,3488.5,1.5486]
[1754253287627,2.387,3488.6,3488.5,2.3401]
[1754253289331,1.893,3488.6,3488.5,2.3401]
[1754253289633,5.5948,3488.9,3488.8,2.3401]
[1754253290831,4.0075,3488.9,3488.8,2.3401]
[1754253291225,3.2078,3488.9,3488.8,5.55960677]
[1754253291430,1.2842,3489.2,3489.1,0.3249]
[1754253291631,2.14901369,3489.2,3489.1,2.3401]
[1754253292135,2.64021369,3489.2,3489.1,2.3401]
[1754253292330,2.14621369,3489.2,3489.1,2.3401]
[1754253292636,1.68721369,3489.2,3489.1,5.55960677]
[1754253292837,1.05291369,3489.2,3489.1,5.55960677]
[1754253293035,0.25321369,3489.2,3489.1,5.55960677]
[1754253293231,1.19601369,3489.2,3489.1,1.8747]
[1754253293438,1.19601369,3489.2,3489.1,0.6276]
[1754253293439,2.64021369,3489.2,3489.1,0.6276]
[1754253293639,2.387,3489.2,3489.1,0.6276]
[1754253294129,2.387,3489.2,3489.1,1.0942]
[1754253294331,2.387,3488.9,3488.8,0.7915]
[1754253294937,2.387,3488.9,3488.8,1.5486]
[1754253296838,2.387,3488.9,3488.8,2.3401]
[1754253297038,2.387,3488.9,3488.8,1.8747]
[1754253297242,2.387,3488.9,3488.8,1.0942]
[1754253298439,0.459,3489.2,3489.0,0.3249]
[1754253298640,1.5845,3489.3,3489.2,1.52688]
[1754253298840,3.01387779,3489.3,3489.2,1.52688]
[1754253299237,3.01387779,3489.3,3489.2,2.91328]
[1754253299442,1.12087779,3489.3,3489.2,2.91328]
[1754253299638,0.25337091,3489.3,3489.2,2.91328]
[1754253299840,3.2078,3489.4,3489.2,2.91328]
[1754253300142,3.2078,3489.4,3489.3,5.55960677]
[1754253300343,0.25340882,3489.4,3489.3,5.55960677]
[1754253302144,1.05310882,3489.4,3489.3,5.55960677]
[1754253303144,0.25340882,3489.4,3489.3,5.55960677]
[1754253303349,21.702,3489.7,3489.6,0.9537]
[1754253303547,21.95546674,3489.7,3489.6,2.3401]
[1754253303848,1.68746674,3489.7,3489.6,2.3401]
[1754253304353,5.1008,3490.2,3490.1,2.3401]
[1754253304643,3.4611556,3490.2,3490.1,2.3401]
[1754253305442,4.4039556,3490.2,3490.1,2.3401]
[1754253305749,5.8481556,3490.2,3490.1,2.3401]
[1754253306043,5.3541556,3490.2,3490.1,2.3401]
[1754253306845,2.6403556,3490.2,3490.1,2.3401]
[1754253307551,2.387,3490.2,3490.1,1.5486]
[1754253307751,0.9428,3490.2,3490.1,0.57305]
[1754253308051,0.9428,3490.2,3490.1,2.45845]
[1754253308250,0.9428,3490.2,3490.1,2.91285]
[1754253308551,2.387,3490.2,3490.1,2.12165]
[1754253309052,2.387,3490.0,3489.9,0.57307]
[1754253309445,2.387,3490.0,3489.5,4.1288]
[1754253309743,2.387,3489.6,3489.5,0.57313]
[1754253310153,0.9428,3489.6,3489.4,0.57315]
[1754253310347,2.387,3489.5,3489.4,0.57315]
[1754253311150,2.387,3489.5,3489.4,1.98125]
[1754253311446,2.387,3489.5,3489.4,2.91295]
[1754253312748,1.434,3489.5,3489.4,0.89805]
[1754253312949,2.387,3489.5,3489.4,0.89805]
[1754253313254,2.387,3489.5,3489.4,2.91295]
[1754253314154,2.387,3489.5,3489.4,2.15405]
[1754253314449,2.387,3489.5,3489.4,2.92235]
[1754253316244,1.434,3489.5,3489.4,2.92235]
[1754253316450,5.644,3489.8,3489.7,2.47601]
[1754253316650,5.644,3489.8,3489.7,2.92231]
[1754253317349,5.644,3489.8,3489.7,2.46081]
[1754253317755,5.644,3489.8,3489.7,2.15401]
[1754253319158,5.644,3489.8,3489.7,2.46081]
[1754253319351,5.644,3489.8,3489.7,2.92231]
[1754253319654,2.4362,3489.8,3489.7,2.92231]
[1754253319952,0.5017,3490.2,3490.1,0.4987]
[1754253320152,22.4812777,3490.2,3490.1,2.3492]
[1754253321855,1.0054,3489.8,3489.7,0.57311]
[1754253322046,2.4362,3489.8,3489.5,0.57315]
[1754253322358,2.4362,3489.6,3489.5,0.57315]
[1754253322660,2.4362,3489.6,3489.5,1.70775]
[1754253323252,2.4362,3489.5,3489.4,0.57315]
[1754253323449,0.5017,3489.7,3489.4,0.57315]
[1754253323652,2.4362,3489.7,3489.6,2.3492]
[1754253324958,23.9583,3489.9,3489.8,2.3492]
[1754253325162,25.434,3489.9,3489.8,2.3492]
[1754253325456,22.2262,3489.9,3489.8,1.8877]
[1754253326758,22.2262,3489.9,3489.7,0.57311]
[1754253326759,21.7205,3490.1,3490.0,2.3492]
[1754253326958,22.58277102,3490.1,3490.0,2.3492]
[1754253327154,23.08647102,3490.1,3490.0,2.3492]
[1754253327660,23.08647102,3490.1,3490.0,1.8877]
[1754253328363,0.9605,3489.9,3489.8,2.15399]
[1754253328557,2.4362,3489.9,3489.8,2.15399]
[1754253329258,2.68970093,3489.9,3489.8,2.46079]
[1754253329459,2.68970093,3489.9,3489.8,2.92229]
[1754253330256,1.6187,3489.8,3489.7,1.33361]
[1754253330557,2.68970093,3489.8,3489.7,2.15401]
[1754253330861,2.4362,3489.8,3489.7,2.92231]
[1754253331358,2.68972833,3489.8,3489.7,2.92231]
[1754253331555,2.4362,3489.8,3489.7,2.92231]
[1754253332558,2.68983435,3489.8,3489.7,0.57311]
[1754253333165,2.68983435,3489.8,3489.7,1.38601]
[1754253333462,2.68983435,3489.8,3489.7,2.15401]
[1754253334863,2.4362,3489.7,3489.6,1.38602]
[1754253335165,0.9605,3489.5,3489.4,1.2592]
[1754253335359,2.4362,3489.5,3489.4,1.5809]
[1754253335663,2.4362,3489.5,3489.4,2.3492]
[1754253336958,19.784,3489.7,3489.5,0.57315]
[1754253337159,20.4181,3489.7,3489.6,2.3492]
[1754253337461,22.47398573,3489.7,3489.6,2.3492]
[1754253338663,22.47398573,3489.7,3489.6,1.8877]
[1754253340957,22.47398573,3489.7,3489.6,2.3492]
[1754253342960,20.03778573,3489.7,3489.6,2.3492]
[1754253343266,22.47398573,3489.7,3489.6,2.3492]
[1754253345066,22.43570381,3489.7,3489.4,0.4995]
[1754253345364,2.3289,3489.5,3489.4,0.4995]